[Event "Catalonia Championship Veterans 2024"]
[Site "Salou Tarragona"]
[Date "2024.05.15"]
[Round "5.9"]
[White "Sanchez Bernardino, Miguel Angel"]
[Black "Melero Sanchez, Pere"]
[Result "1/2-1/2"]
[ECO "B12"]
[WhiteElo "1954"]
[BlackElo "1934"]
[Annotator "RC"]
[PlyCount "54"]
[EventDate "2024.05.11"]
[EventType "swiss"]
[EventCountry "ESP"]
[SourceTitle "playchess.com"]
[Source "ChessBase"]
[SourceQuality "1"]
[TimeControl "5400+30"]

1. e4 {[%emt 0:00:04]} c6 {[%emt 0:00:01]} 2. d4 {[%emt 0:00:17]} d5 {[%emt 0:00:02]} 3. e5 {[%emt 0:00:19]} Bf5 {[%emt 0:00:03]} 4. h4 {[%emt 0:00:19]} h5 {[%emt 0:00:34]} 5. Bd3 {[%emt 0:00:17]} Bxd3 {[%emt 0:00:24]} 6. Qxd3 {[%emt 0:00:24]} e6 {[%emt 0:00:21]} 7. Bg5 {[%emt 0:00:23]} Qa5+ {[%emt 0:00:59]} 8. Nd2 {[%emt 0:00:51]} Qa6 {[%emt 0:00:46]} 9. c4 {[%emt 0:00:34]} c5 {[%emt 0:01:04]} 10. Ngf3 {[%emt 0:05:40]} Nc6 {[%emt 0:00:58]} 11. dxc5 {[%emt 0:07:08]} Bxc5 {[%emt 0:02:22]} 12. O-O {[%emt 0:00:25]} Nge7 {[%emt 0:02:44]} 13. a3 {[%emt 0:02:00]} dxc4 {[%emt 0:07:22]} 14. Nxc4 {[%emt 0:04:55]} b5 {[%emt 0:17:56]} 15. Ncd2 {[%emt 0:13:40]} Rd8 {[%emt 0:07:16]} 16. Qe2 {[%emt 0:06:11]} Rd5 {[%emt 0:01:53]} 17. Nb3 {[%emt 0:23:07]} Bb6 {[%emt 0:04:28]} 18. Rfd1 {[%emt 0:04:02]} Qb7 {[%emt 0:04:30]} 19. Rac1 {[%emt 0:04:34]} O-O {[%emt 0:13:29]} 20. Rxd5 {[%emt 0:04:51]} Nxd5 {[%emt 0:00:58]} 21. Nc5 {[%emt 0:00:19]} Bxc5 {[%emt 0:01:01]} 22. Rxc5 {[%emt 0:00:06]} a6 {[%emt 0:03:09]} 23. Nd2 {[%emt 0:02:05]} Qb6 {[%emt 0:03:52]} 24. b4 {[%emt 0:02:17]} a5 {[%emt 0:03:14]} 25. Qxb5 {[%emt 0:03:37]} Qxb5 {[%emt 0:00:23]} 26. Rxb5 {[%emt 0:00:12]} axb4 {[%emt 0:00:33]} 27. axb4 {[%emt 0:00:23]} Ncxb4 {[%emt 0:00:43]} 1/2-1/2

[Event "Catalonia Championship Veterans 2024"]
[Site "Salou Tarragona"]
[Date "2024.05.15"]
[Round "5.10"]
[White "Cuadras Avellana, Jordi"]
[Black "Coll Sola, Joan"]
[Result "1/2-1/2"]
[ECO "D75"]
[WhiteElo "2176"]
[BlackElo "1952"]
[Annotator "RC"]
[PlyCount "117"]
[EventDate "2024.05.11"]
[EventType "swiss"]
[EventCountry "ESP"]
[SourceTitle "playchess.com"]
[Source "ChessBase"]
[SourceQuality "1"]
[TimeControl "5400+30"]

1. c4 {[%emt 0:00:30]} Nf6 {[%emt 0:00:30]} 2. Nc3 {[%emt 0:00:00]} d5 {[%emt 0:00:00]} 3. cxd5 {[%emt 0:01:30]} Nxd5 {[%emt 0:00:00]} 4. Nf3 {[%emt 0:00:21]} g6 {[%emt 0:00:09]} 5. g3 {[%emt 0:00:08]} Bg7 {[%emt 0:00:29]} 6. Bg2 {[%emt 0:00:10]} O-O {[%emt 0:00:34]} 7. O-O {[%emt 0:00:07]} c5 {[%emt 0:00:23]} 8. d4 {[%emt 0:04:43]} cxd4 {[%emt 0:03:48]} 9. Nxd4 {[%emt 0:00:41]} Nxc3 {[%emt 0:00:08]} 10. bxc3 {[%emt 0:00:08]} a6 {[%emt 0:07:29]} 11. Qb3 {[%emt 0:01:37]} Qc7 {[%emt 0:00:48]} 12. Ba3 {[%emt 0:01:06]} Re8 {[%emt 0:03:06]} 13. Rab1 {[%emt 0:02:39]} e5 {[%emt 0:00:46]} 14. Nc2 {[%emt 0:01:51]} Nc6 {[%emt 0:00:09]} 15. Ne3 {[%emt 0:00:54]} Na5 {[%emt 0:15:43]} 16. Nd5 {[%emt 0:08:54]} Qd8 {[%emt 0:08:10]} 17. Qb6 {[%emt 0:18:45]} Be6 {[%emt 0:03:40]} 18. Qxd8 {[%emt 0:04:59]} Rexd8 {[%emt 0:02:15]} 19. Nb6 {[%emt 0:14:42]} Rab8 {[%emt 0:01:56]} 20. Bb4 {[%emt 0:20:06]} Nc4 {[%emt 0:01:17]} 21. Nxc4 {[%emt 0:03:11]} Bxc4 {[%emt 0:00:12]} 22. Ba5 {[%emt 0:00:09]} Rd2 {[%emt 0:04:25]} 23. Bxb7 {[%emt 0:05:48]} Bxa2 {[%emt 0:06:04]} 24. Rb6 {[%emt 0:01:40]} Bc4 {[%emt 0:01:17]} 25. Rfb1 {[%emt 0:00:42]} Bxe2 {[%emt 0:03:53]} 26. Bb4 {[%emt 0:05:28]} e4 {[%emt 0:05:29]} 27. Rd6 {[%emt 0:01:25]} Rxd6 {[%emt 0:01:57]} 28. Bxd6 {[%emt 0:00:01]} Rd8 {[%emt 0:00:25]} 29. Bb4 {[%emt 0:00:10]} Bd3 {[%emt 0:01:54]} 30. Re1 {[%emt 0:01:45]} f5 {[%emt 0:00:41]} 31. f3 {[%emt 0:00:11]} Bh6 {[%emt 0:09:34]} 32. fxe4 {[%emt 0:00:21]} Bd2 {[%emt 0:01:29]} 33. Ra1 {[%emt 0:00:19]} Be3+ {[%emt 0:00:27]} 34. Kg2 {[%emt 0:00:10]} fxe4 {[%emt 0:01:28]} 35. Bxa6 {[%emt 0:00:21]} Bxa6 {[%emt 0:00:42]} 36. Rxa6 {[%emt 0:00:03]} Rd2+ {[%emt 0:00:12]} 37. Kf1 {[%emt 0:02:27]} Rf2+ {[%emt 0:01:21]} 38. Ke1 {[%emt 0:00:02]} Rxh2 {[%emt 0:00:32]} 39. Re6 {[%emt 0:00:05]} Bf2+ {[%emt 0:00:50]} 40. Kf1 {[%emt 0:00:19]} e3 {[%emt 0:00:45]} 41. Bc5 {[%emt 0:01:03]} e2+ {[%emt 0:00:22]} 42. Rxe2 {[%emt 0:00:07]} Bxg3 {[%emt 0:00:33]} 43. Rxh2 {[%emt 0:00:28]} Bxh2 {[%emt 0:00:13]} 44. Kg2 {[%emt 0:00:07]} Be5 {[%emt 0:02:55]} 45. c4 {[%emt 0:00:08]} Kf7 {[%emt 0:00:09]} 46. Kf3 {[%emt 0:00:01]} Ke6 {[%emt 0:00:15]} 47. Ke4 {[%emt 0:00:01]} h5 {[%emt 0:00:15]} 48. Bf2 {[%emt 0:01:52]} g5 {[%emt 0:00:41]} 49. Be1 {[%emt 0:01:02]} h4 {[%emt 0:01:38]} 50. Bxh4 {[%emt 0:00:50]} gxh4 {[%emt 0:00:31]} 51. Kf3 {[%emt 0:00:06]} Kf5 {[%emt 0:00:11]} 52. Kg2 {[%emt 0:00:07]} Kg4 {[%emt 0:00:02]} 53. c5 {[%emt 0:00:09]} h3+ {[%emt 0:00:36]} 54. Kh1 {[%emt 0:00:04]} Kf3 {[%emt 0:00:38]} 55. c6 {[%emt 0:00:21]} Bc7 {[%emt 0:00:55]} 56. Kg1 {[%emt 0:00:10]} Ke4 {[%emt 0:00:27]} 57. Kh1 {[%emt 0:00:10]} Kd5 {[%emt 0:00:09]} 58. Kg1 {[%emt 0:00:07]} Kxc6 {[%emt 0:00:02]} 59. Kh1 {[%emt 0:00:06]} 1/2-1/2